[Event "*** Titled Tuesday Blitz"]
[Site "Chess.com"]
[Date "2020.10.20"]
[Round "4"]
[White "GalperinPlaton"]
[Black "Hikaru"]
[Result "1/2-1/2"]
[WhiteElo "2825"]
[BlackElo "3219"]
[TimeControl "180+1"]
[EndTime "10:41:50 PDT"]
[Termination "Game drawn by repetition"]

1. d4 {[%clk 0:03:00.9]} 1... Nf6 {[%clk 0:02:58.8]} 2. c4 {[%clk 0:03:01.4]}
2... g6 {[%clk 0:02:58.9]} 3. Nc3 {[%clk 0:03:01.7]} 3... Bg7 {[%clk 0:02:59.4]}
4. e4 {[%clk 0:03:01.9]} 4... d6 {[%clk 0:02:59.9]} 5. Be2 {[%clk 0:03:02.2]}
5... O-O {[%clk 0:03:00.4]} 6. Be3 {[%clk 0:03:02.1]} 6... e5 {[%clk 0:03:00.6]}
7. d5 {[%clk 0:03:02.7]} 7... a5 {[%clk 0:02:58.2]} 8. g4 {[%clk 0:03:02.4]}
8... Na6 {[%clk 0:02:58.5]} 9. g5 {[%clk 0:03:02.8]} 9... Nd7 {[%clk 0:02:58.5]}
10. h4 {[%clk 0:03:03.3]} 10... f5 {[%clk 0:02:58.6]} 11. gxf6 {[%clk
0:03:02.9]} 11... Qxf6 {[%clk 0:02:58.4]} 12. Qd2 {[%clk 0:02:55.2]} 12... h5
{[%clk 0:02:50.6]} 13. O-O-O {[%clk 0:02:50]} 13... Ndc5 {[%clk 0:02:50.8]} 14.
Nf3 {[%clk 0:02:42.8]} 14... Bg4 {[%clk 0:02:38.5]} 15. Ng5 {[%clk 0:02:43]}
15... Bxe2 {[%clk 0:02:36.8]} 16. Qxe2 {[%clk 0:02:43.9]} 16... Bh6 {[%clk
0:02:37.1]} 17. Rhg1 {[%clk 0:02:39.6]} 17... Kh8 {[%clk 0:02:25.8]} 18. Kb1
{[%clk 0:02:35.3]} 18... Bxg5 {[%clk 0:02:23.4]} 19. Rxg5 {[%clk 0:02:36.2]}
19... Rf7 {[%clk 0:02:21.8]} 20. Rdg1 {[%clk 0:02:35.6]} 20... Rg8 {[%clk
0:02:21.7]} 21. Rxg6 {[%clk 0:01:30.2]} 21... Qxg6 {[%clk 0:02:10.5]} 22. Rxg6
{[%clk 0:01:28.2]} 22... Rxg6 {[%clk 0:02:11.4]} 23. Qxh5+ {[%clk 0:01:28.7]}
23... Kg7 {[%clk 0:02:12.3]} 24. f4 {[%clk 0:01:25.4]} 24... Rxf4 {[%clk
0:02:04.4]} 25. Bxf4 {[%clk 0:01:21.4]} 25... exf4 {[%clk 0:02:04.9]} 26. Ne2
{[%clk 0:01:03.8]} 26... Nd3 {[%clk 0:01:48.9]} 27. Qf3 {[%clk 0:00:45.8]} 27...
Nac5 {[%clk 0:01:47.3]} 28. h5 {[%clk 0:00:28.1]} 28... Rg5 {[%clk 0:01:21.3]}
29. b3 {[%clk 0:00:27.6]} 29... Ne5 {[%clk 0:01:21.4]} 30. Qxf4 {[%clk
0:00:21.8]} 30... Rg4 {[%clk 0:01:15.2]} 31. h6+ {[%clk 0:00:18.7]} 31... Kh7
{[%clk 0:01:13]} 32. Qf5+ {[%clk 0:00:18.5]} 32... Kxh6 {[%clk 0:01:13.5]} 33.
Nf4 {[%clk 0:00:19]} 33... Rg1+ {[%clk 0:01:00.5]} 34. Kc2 {[%clk 0:00:18.9]}
34... Ng6 {[%clk 0:00:51.3]} 35. Ne6 {[%clk 0:00:09.2]} 35... Nxe6 {[%clk
0:00:51.5]} 36. dxe6 {[%clk 0:00:09.2]} 36... Rg5 {[%clk 0:00:52.1]} 37. Qf6
{[%clk 0:00:04.9]} 37... Re5 {[%clk 0:00:52.6]} 38. Kd3 {[%clk 0:00:05.2]} 38...
Kh5 {[%clk 0:00:47.6]} 39. Ke3 {[%clk 0:00:05.5]} 39... b5 {[%clk 0:00:41.6]}
40. Qf7 {[%clk 0:00:05]} 40... bxc4 {[%clk 0:00:40.3]} 41. bxc4 {[%clk
0:00:05.9]} 41... c5 {[%clk 0:00:40.7]} 42. Qf6 {[%clk 0:00:05.4]} 42... Kh6
{[%clk 0:00:40.2]} 43. a4 {[%clk 0:00:05.5]} 43... Kh5 {[%clk 0:00:38.2]} 44.
Qf7 {[%clk 0:00:03.5]} 44... Kh6 {[%clk 0:00:38.2]} 45. Qd7 {[%clk 0:00:03.7]}
45... Kg5 {[%clk 0:00:37.7]} 46. Qxd6 {[%clk 0:00:04]} 46... Kf6 {[%clk
0:00:38.6]} 47. e7+ {[%clk 0:00:02.8]} 47... Kf7 {[%clk 0:00:39]} 48. e8=Q+
{[%clk 0:00:02.9]} 48... Rxe8 {[%clk 0:00:38.8]} 49. Qxc5 {[%clk 0:00:03]} 49...
Ne5 {[%clk 0:00:39.4]} 50. Qb5 {[%clk 0:00:02.6]} 50... Re6 {[%clk 0:00:38.2]}
51. Qd5 {[%clk 0:00:02.9]} 51... Ke7 {[%clk 0:00:37.4]} 52. c5 {[%clk
0:00:03.8]} 52... Nc6 {[%clk 0:00:37.9]} 53. Qg5+ {[%clk 0:00:03.5]} 53... Kd7
{[%clk 0:00:37.5]} 54. Qd5+ {[%clk 0:00:04.4]} 54... Ke7 {[%clk 0:00:37.9]} 55.
Qg5+ {[%clk 0:00:04.3]} 55... Kd7 {[%clk 0:00:38.4]} 56. Qg7+ {[%clk 0:00:05.2]}
56... Re7 {[%clk 0:00:38.6]} 57. Qg4+ {[%clk 0:00:05.3]} 57... Re6 {[%clk
0:00:38.7]} 58. Qf5 {[%clk 0:00:05.7]} 58... Ke7 {[%clk 0:00:36.3]} 59. Qd5
{[%clk 0:00:05.2]} 59... Rg6 {[%clk 0:00:33.3]} 60. Kf4 {[%clk 0:00:05.4]} 60...
Rf6+ {[%clk 0:00:33.4]} 61. Kg5 {[%clk 0:00:05.6]} 61... Re6 {[%clk 0:00:34.1]}
62. Kf4 {[%clk 0:00:04.5]} 62... Rf6+ {[%clk 0:00:34.6]} 63. Ke3 {[%clk
0:00:05]} 63... Re6 {[%clk 0:00:35.3]} 1/2-1/2

[Event "*** Titled Tuesday Blitz"]
[Site "Chess.com"]
[Date "2020.10.20"]
[Round "4"]
[White "Makswolf200817"]
[Black "Meri-Arabidze"]
[Result "1-0"]
[WhiteElo "2453"]
[BlackElo "2636"]
[TimeControl "180+1"]
[EndTime "10:41:50 PDT"]
[Termination "Makswolf200817 won on time"]

1. d4 {[%clk 0:03:00.9]} 1... d5 {[%clk 0:02:59.5]} 2. c4 {[%clk 0:03:00.5]}
2... dxc4 {[%clk 0:02:59.8]} 3. e3 {[%clk 0:02:59.3]} 3... Nf6 {[%clk
0:02:59.4]} 4. Bxc4 {[%clk 0:02:58.8]} 4... e6 {[%clk 0:02:59.7]} 5. Nf3 {[%clk
0:02:58.2]} 5... a6 {[%clk 0:03:00.1]} 6. Be2 {[%clk 0:02:53]} 6... b5 {[%clk
0:02:59.4]} 7. O-O {[%clk 0:02:52.8]} 7... Bb7 {[%clk 0:02:59.2]} 8. a4 {[%clk
0:02:52.8]} 8... b4 {[%clk 0:02:59.6]} 9. Nbd2 {[%clk 0:02:52.6]} 9... Nbd7
{[%clk 0:02:59.8]} 10. a5 {[%clk 0:02:49.9]} 10... c5 {[%clk 0:02:59.6]} 11. Nc4
{[%clk 0:02:43.9]} 11... Be7 {[%clk 0:02:57.3]} 12. b3 {[%clk 0:02:43.9]} 12...
O-O {[%clk 0:02:55.6]} 13. Bb2 {[%clk 0:02:42.7]} 13... Nd5 {[%clk 0:02:48.5]}
14. Qd2 {[%clk 0:02:34.5]} 14... N7f6 {[%clk 0:02:45.2]} 15. Bd3 {[%clk
0:02:28.8]} 15... Rc8 {[%clk 0:02:41.1]} 16. dxc5 {[%clk 0:02:21.2]} 16... Bxc5
{[%clk 0:02:35.9]} 17. Rfd1 {[%clk 0:02:20.6]} 17... Qe7 {[%clk 0:02:30.6]} 18.
e4 {[%clk 0:02:14.9]} 18... Nc3 {[%clk 0:02:28.8]} 19. Bxc3 {[%clk 0:02:03.7]}
19... bxc3 {[%clk 0:02:29.7]} 20. Qxc3 {[%clk 0:02:04.6]} 20... Nxe4 {[%clk
0:02:28.1]} 21. Bxe4 {[%clk 0:02:04.5]} 21... Bxe4 {[%clk 0:02:28.7]} 22. Nfe5
{[%clk 0:01:59.9]} 22... Bd5 {[%clk 0:02:22.5]} 23. Qg3 {[%clk 0:01:49.6]} 23...
f6 {[%clk 0:02:03.8]} 24. Ng4 {[%clk 0:01:46.9]} 24... Rb8 {[%clk 0:01:55.1]}
25. Rab1 {[%clk 0:01:43.5]} 25... Be4 {[%clk 0:01:48.2]} 26. Rb2 {[%clk
0:01:40.8]} 26... Rfd8 {[%clk 0:01:42]} 27. Rbd2 {[%clk 0:01:33]} 27... Bd5
{[%clk 0:01:35.9]} 28. h4 {[%clk 0:01:21.2]} 28... Bxc4 {[%clk 0:01:28.7]} 29.
bxc4 {[%clk 0:01:20.2]} 29... Kf8 {[%clk 0:01:07.9]} 30. h5 {[%clk 0:01:14.9]}
30... h6 {[%clk 0:01:02.2]} 31. Qf4 {[%clk 0:01:05.2]} 31... Rbc8 {[%clk
0:00:53]} 32. Ne3 {[%clk 0:01:03.1]} 32... Bb4 {[%clk 0:00:46.7]} 33. Rxd8+
{[%clk 0:00:56.3]} 33... Rxd8 {[%clk 0:00:47.6]} 34. Rxd8+ {[%clk 0:00:56.4]}
34... Qxd8 {[%clk 0:00:48.5]} 35. Qe4 {[%clk 0:00:56.9]} 35... Qe8 {[%clk
0:00:34.4]} 36. Qb7 {[%clk 0:00:50.5]} 36... Bxa5 {[%clk 0:00:25.4]} 37. Qxa6
{[%clk 0:00:50.2]} 37... Bb4 {[%clk 0:00:24.7]} 38. Qb6 {[%clk 0:00:47.2]} 38...
Ba3 {[%clk 0:00:18.2]} 39. c5 {[%clk 0:00:45]} 39... Qxh5 {[%clk 0:00:13.4]} 40.
Qd6+ {[%clk 0:00:31]} 40... Kg8 {[%clk 0:00:09.5]} 41. Qd8+ {[%clk 0:00:25.6]}
41... Kh7 {[%clk 0:00:09.1]} 42. c6 {[%clk 0:00:25.9]} 42... Qc5 {[%clk
0:00:03.8]} 43. c7 {[%clk 0:00:24.6]} 43... Qc1+ {[%clk 0:00:02.2]} 44. Nf1
{[%clk 0:00:24]} 44... Bb4 {[%clk 0:00:01.2]} 45. c8=Q {[%clk 0:00:23.7]} 45...
Qf4 {[%clk 0:00:01.7]} 46. Qd3+ {[%clk 0:00:22.2]} 46... f5 {[%clk 0:00:01.5]}
47. Qxe6 {[%clk 0:00:20.9]} 1-0

[Event "*** Titled Tuesday Blitz"]
[Site "Chess.com"]
[Date "2020.10.20"]
[Round "4"]
[White "dosto07"]
[Black "Gerodot71"]
[Result "0-1"]
[WhiteElo "2327"]
[BlackElo "2454"]
[TimeControl "180+1"]
[EndTime "10:41:50 PDT"]
[Termination "Gerodot71 won on time"]

1. e4 {[%clk 0:03:00.9]} 1... e5 {[%clk 0:03:00.2]} 2. Nf3 {[%clk 0:03:00.4]}
2... Nc6 {[%clk 0:03:00.7]} 3. Bb5 {[%clk 0:03:00]} 3... a6 {[%clk 0:03:00.7]}
4. Ba4 {[%clk 0:03:00.1]} 4... Nf6 {[%clk 0:03:00.5]} 5. O-O {[%clk 0:02:59.7]}
5... Be7 {[%clk 0:03:00.6]} 6. d3 {[%clk 0:02:58.8]} 6... b5 {[%clk 0:03:00.2]}
7. Bb3 {[%clk 0:02:57.7]} 7... d6 {[%clk 0:02:59.8]} 8. Bd2 {[%clk 0:02:56.9]}
8... O-O {[%clk 0:02:55.8]} 9. h3 {[%clk 0:02:55.6]} 9... Nb8 {[%clk 0:02:54.3]}
10. a4 {[%clk 0:02:46.1]} 10... Bb7 {[%clk 0:02:53.2]} 11. Nc3 {[%clk
0:02:35.4]} 11... b4 {[%clk 0:02:45.9]} 12. Ne2 {[%clk 0:02:32.9]} 12... a5
{[%clk 0:02:45.1]} 13. Ng3 {[%clk 0:02:32.2]} 13... Nbd7 {[%clk 0:02:40.8]} 14.
c3 {[%clk 0:02:15.7]} 14... bxc3 {[%clk 0:02:38.4]} 15. bxc3 {[%clk 0:02:14.8]}
15... Nc5 {[%clk 0:02:38.9]} 16. Bc2 {[%clk 0:02:11.3]} 16... Re8 {[%clk
0:02:35.1]} 17. Re1 {[%clk 0:02:09.8]} 17... Bf8 {[%clk 0:02:34.5]} 18. Be3
{[%clk 0:01:53]} 18... Ne6 {[%clk 0:02:29.6]} 19. d4 {[%clk 0:01:47.5]} 19...
exd4 {[%clk 0:02:04.6]} 20. cxd4 {[%clk 0:01:46.9]} 20... Rb8 {[%clk 0:02:02.3]}
21. Qd2 {[%clk 0:01:42.9]} 21... g6 {[%clk 0:01:56.2]} 22. Qxa5 {[%clk 0:01:38]}
22... Bg7 {[%clk 0:01:51.7]} 23. Rab1 {[%clk 0:01:35]} 23... c5 {[%clk
0:01:43.4]} 24. Qxd8 {[%clk 0:01:33.3]} 24... Rexd8 {[%clk 0:01:44.3]} 25. d5
{[%clk 0:01:28.2]} 25... Nc7 {[%clk 0:01:34.8]} 26. Rb6 {[%clk 0:01:09.7]} 26...
Na8 {[%clk 0:01:21.6]} 27. Rb5 {[%clk 0:00:57]} 27... Nc7 {[%clk 0:01:20.4]} 28.
Rb6 {[%clk 0:00:54.9]} 28... Na8 {[%clk 0:01:20.2]} 29. Rbb1 {[%clk 0:00:53.9]}
29... Nd7 {[%clk 0:01:14.9]} 30. Nd2 {[%clk 0:00:52]} 30... Ba6 {[%clk
0:01:13.4]} 31. Rxb8 {[%clk 0:00:47.8]} 31... Rxb8 {[%clk 0:01:14.3]} 32. Rb1
{[%clk 0:00:47.5]} 32... Rxb1+ {[%clk 0:01:07]} 33. Bxb1 {[%clk 0:00:47.5]}
33... Kf8 {[%clk 0:01:03.2]} 34. f3 {[%clk 0:00:47.3]} 34... Nab6 {[%clk
0:01:02.2]} 35. Bc2 {[%clk 0:00:45]} 35... Ke7 {[%clk 0:00:59.6]} 36. Kf2 {[%clk
0:00:45]} 36... Ne5 {[%clk 0:00:58.7]} 37. Ne2 {[%clk 0:00:35]} 37... Nd3+
{[%clk 0:00:52.3]} 38. Bxd3 {[%clk 0:00:33.6]} 38... Bxd3 {[%clk 0:00:53.2]} 39.
Nc1 {[%clk 0:00:22.4]} 39... Ba6 {[%clk 0:00:48.7]} 40. a5 {[%clk 0:00:22.3]}
40... Na4 {[%clk 0:00:44.2]} 41. Bg5+ {[%clk 0:00:11.2]} 41... Kd7 {[%clk
0:00:43.4]} 42. f4 {[%clk 0:00:10]} 42... Bc3 {[%clk 0:00:37.8]} 43. Ke3 {[%clk
0:00:05.8]} 43... Bxa5 {[%clk 0:00:34.7]} 44. Nd3 {[%clk 0:00:05]} 44... c4
{[%clk 0:00:31]} 45. Ne1 {[%clk 0:00:04.7]} 45... Bb6+ {[%clk 0:00:30.9]} 46.
Kf3 {[%clk 0:00:03.5]} 46... c3 {[%clk 0:00:30.3]} 47. Nb3 {[%clk 0:00:03.2]}
47... Bc4 {[%clk 0:00:28.9]} 48. Nc1 {[%clk 0:00:02.7]} 48... Bc5 {[%clk
0:00:19.1]} 49. Bf6 {[%clk 0:00:03]} 49... Ba3 {[%clk 0:00:18.8]} 50. Ncd3
{[%clk 0:00:01.3]} 50... c2 {[%clk 0:00:18.8]} 0-1

[Event "*** Titled Tuesday Blitz"]
[Site "Chess.com"]
[Date "2020.10.20"]
[Round "4"]
[White "Trickov"]
[Black "parnali1611"]
[Result "1-0"]
[WhiteElo "2337"]
[BlackElo "2102"]
[TimeControl "180+1"]
[EndTime "10:41:50 PDT"]
[Termination "Trickov won on time"]

1. d4 {[%clk 0:03:00.9]} 1... d5 {[%clk 0:02:59.6]} 2. Nf3 {[%clk 0:02:57.8]}
2... Nf6 {[%clk 0:02:48.6]} 3. c4 {[%clk 0:02:55.8]} 3... e6 {[%clk 0:02:47.3]}
4. g3 {[%clk 0:02:55.6]} 4... Bb4+ {[%clk 0:02:44.9]} 5. Bd2 {[%clk 0:02:55]}
5... Be7 {[%clk 0:02:42.9]} 6. Bg2 {[%clk 0:02:55.1]} 6... O-O {[%clk
0:02:42.6]} 7. O-O {[%clk 0:02:54.9]} 7... dxc4 {[%clk 0:02:43]} 8. Na3 {[%clk
0:02:49]} 8... c6 {[%clk 0:02:30.9]} 9. Nxc4 {[%clk 0:02:41.3]} 9... Na6 {[%clk
0:02:27.7]} 10. Rc1 {[%clk 0:02:33.9]} 10... Nc7 {[%clk 0:02:27.1]} 11. b3
{[%clk 0:02:24.6]} 11... Ncd5 {[%clk 0:02:25.6]} 12. Qc2 {[%clk 0:02:18.7]}
12... a5 {[%clk 0:02:16.8]} 13. Rfd1 {[%clk 0:02:16.8]} 13... Nb4 {[%clk
0:02:11.6]} 14. Qb1 {[%clk 0:02:16.6]} 14... Bd7 {[%clk 0:01:54.1]} 15. e4
{[%clk 0:02:14.5]} 15... b5 {[%clk 0:01:42.9]} 16. Nce5 {[%clk 0:02:12.7]} 16...
Qb6 {[%clk 0:01:39.7]} 17. h3 {[%clk 0:02:09.8]} 17... Qb7 {[%clk 0:01:37.4]}
18. Nxd7 {[%clk 0:01:54.5]} 18... Nxd7 {[%clk 0:01:35.8]} 19. a3 {[%clk
0:01:30.2]} 19... Na6 {[%clk 0:01:31.5]} 20. Qb2 {[%clk 0:01:29.4]} 20... Nc7
{[%clk 0:01:27.1]} 21. Bf4 {[%clk 0:01:25]} 21... b4 {[%clk 0:01:23.5]} 22. a4
{[%clk 0:01:22.5]} 22... Rac8 {[%clk 0:01:15.7]} 23. Qe2 {[%clk 0:01:09.6]}
23... Rfd8 {[%clk 0:01:14.4]} 24. Rc2 {[%clk 0:01:08.8]} 24... c5 {[%clk
0:01:06.5]} 25. d5 {[%clk 0:01:02.9]} 25... exd5 {[%clk 0:01:01.6]} 26. exd5
{[%clk 0:01:02.5]} 26... Bf6 {[%clk 0:01:01]} 27. d6 {[%clk 0:00:57.9]} 27...
Ne6 {[%clk 0:00:58.2]} 28. Ne5 {[%clk 0:00:54.1]} 28... Qb6 {[%clk 0:00:55.2]}
29. Nc4 {[%clk 0:00:52.9]} 29... Qa7 {[%clk 0:00:55.1]} 30. Be3 {[%clk
0:00:52.3]} 30... Bd4 {[%clk 0:00:52.2]} 31. Rcd2 {[%clk 0:00:50.2]} 31... Nf6
{[%clk 0:00:49]} 32. h4 {[%clk 0:00:41.2]} 32... Ne8 {[%clk 0:00:44.1]} 33. Bh3
{[%clk 0:00:39.7]} 33... Nxd6 {[%clk 0:00:36.4]} 34. Bxe6 {[%clk 0:00:38.9]}
34... fxe6 {[%clk 0:00:30.9]} 35. Bxd4 {[%clk 0:00:38.8]} 35... cxd4 {[%clk
0:00:10.1]} 36. Qxe6+ {[%clk 0:00:38.3]} 36... Nf7 {[%clk 0:00:10.3]} 37. Ne5
{[%clk 0:00:32]} 37... Re8 {[%clk 0:00:04.4]} 38. Qxf7+ {[%clk 0:00:27.9]} 38...
Qxf7 {[%clk 0:00:04.5]} 39. Nxf7 {[%clk 0:00:26.9]} 39... Kxf7 {[%clk
0:00:05.4]} 40. Rxd4 {[%clk 0:00:26.8]} 40... Rc3 {[%clk 0:00:06.3]} 41. Rd5
{[%clk 0:00:23.2]} 41... Rxb3 {[%clk 0:00:05]} 42. Rxa5 {[%clk 0:00:23.1]} 42...
Ra3 {[%clk 0:00:04.9]} 43. Ra7+ {[%clk 0:00:23]} 43... Re7 {[%clk 0:00:05.2]}
44. Rdd7 {[%clk 0:00:22.8]} 44... Rxd7 {[%clk 0:00:04.8]} 45. Rxd7+ {[%clk
0:00:22.8]} 45... Kf6 {[%clk 0:00:05.1]} 46. Ra7 {[%clk 0:00:22.8]} 46... b3
{[%clk 0:00:05.4]} 47. Rb7 {[%clk 0:00:22.5]} 47... Ra1+ {[%clk 0:00:04]} 48.
Kg2 {[%clk 0:00:22.5]} 48... Rxa4 {[%clk 0:00:02.8]} 49. Rxb3 {[%clk 0:00:21.8]}
1-0

[Event "*** Titled Tuesday Blitz"]
[Site "Chess.com"]
[Date "2020.10.20"]
[Round "4"]
[White "IANOV0007"]
[Black "Smile2005"]
[Result "1/2-1/2"]
[WhiteElo "2492"]
[BlackElo "2344"]
[TimeControl "180+1"]
[EndTime "10:41:51 PDT"]
[Termination "Game drawn by repetition"]

1. Nf3 {[%clk 0:03:00.9]} 1... Nf6 {[%clk 0:02:59.8]} 2. g3 {[%clk 0:03:00.7]}
2... g6 {[%clk 0:02:54.3]} 3. b3 {[%clk 0:03:00.1]} 3... Bg7 {[%clk 0:02:55.2]}
4. Bb2 {[%clk 0:03:00.1]} 4... O-O {[%clk 0:02:56.1]} 5. Bg2 {[%clk 0:03:00.1]}
5... d6 {[%clk 0:02:56.2]} 6. d4 {[%clk 0:02:59.9]} 6... Nbd7 {[%clk 0:02:56]}
7. O-O {[%clk 0:02:59.5]} 7... e5 {[%clk 0:02:54.7]} 8. dxe5 {[%clk 0:02:57.9]}
8... Ng4 {[%clk 0:02:55]} 9. c4 {[%clk 0:02:57.8]} 9... Ngxe5 {[%clk 0:02:54.4]}
10. Nc3 {[%clk 0:02:57.2]} 10... Nxf3+ {[%clk 0:02:53.5]} 11. Bxf3 {[%clk
0:02:57.2]} 11... Ne5 {[%clk 0:02:54.4]} 12. Bg2 {[%clk 0:02:57.1]} 12... c6
{[%clk 0:02:54.3]} 13. Qd2 {[%clk 0:02:56.5]} 13... Qc7 {[%clk 0:02:52.9]} 14.
Rad1 {[%clk 0:02:56]} 14... Rd8 {[%clk 0:02:51.8]} 15. h3 {[%clk 0:02:55.9]}
15... f5 {[%clk 0:02:40.1]} 16. f4 {[%clk 0:02:50.4]} 16... Nf7 {[%clk
0:02:39.7]} 17. e4 {[%clk 0:02:49.7]} 17... fxe4 {[%clk 0:02:39.7]} 18. Nxe4
{[%clk 0:02:48.7]} 18... Bf5 {[%clk 0:02:35.9]} 19. Bxg7 {[%clk 0:02:46.7]}
19... Bxe4 {[%clk 0:02:35.7]} 20. Bb2 {[%clk 0:02:38.2]} 20... Bxg2 {[%clk
0:02:34.7]} 21. Kxg2 {[%clk 0:02:37.5]} 21... Qe7 {[%clk 0:01:26.5]} 22. Rfe1
{[%clk 0:02:33.2]} 22... Qf8 {[%clk 0:01:22.7]} 23. Qd4 {[%clk 0:02:29.9]} 23...
Re8 {[%clk 0:01:19.6]} 24. Qf6 {[%clk 0:02:22.7]} 24... a5 {[%clk 0:01:14.3]}
25. a4 {[%clk 0:02:18.4]} 25... Rad8 {[%clk 0:01:10.2]} 26. g4 {[%clk
0:02:16.9]} 26... c5 {[%clk 0:01:05.3]} 27. Kg3 {[%clk 0:02:13]} 27... g5 {[%clk
0:01:00.6]} 28. fxg5 {[%clk 0:02:06.5]} 28... Rxe1 {[%clk 0:00:56.8]} 29. Rxe1
{[%clk 0:02:05.4]} 29... Ne5 {[%clk 0:00:56.5]} 30. Bxe5 {[%clk 0:02:00]} 30...
dxe5 {[%clk 0:00:56.9]} 31. Qxf8+ {[%clk 0:01:53.2]} 31... Kxf8 {[%clk
0:00:56.6]} 32. Rxe5 {[%clk 0:01:52.8]} 32... Rd3+ {[%clk 0:00:52.7]} 33. Kf4
{[%clk 0:01:50.5]} 33... Rxh3 {[%clk 0:00:50.8]} 34. Rxc5 {[%clk 0:01:50]} 34...
Rxb3 {[%clk 0:00:49]} 35. Rxa5 {[%clk 0:01:49]} 35... Rb4 {[%clk 0:00:48.7]} 36.
Kf5 {[%clk 0:01:44.7]} 36... Rxc4 {[%clk 0:00:46.1]} 37. Rb5 {[%clk 0:01:39.2]}
37... Rxa4 {[%clk 0:00:43.2]} 38. Rxb7 {[%clk 0:01:38.4]} 38... Kg8 {[%clk
0:00:42.6]} 39. Rb8+ {[%clk 0:01:33.6]} 39... Kg7 {[%clk 0:00:42.1]} 40. Rb7+
{[%clk 0:01:33.5]} 40... Kg8 {[%clk 0:00:41.8]} 41. Rb5 {[%clk 0:01:32.3]} 41...
Ra6 {[%clk 0:00:40.3]} 42. Re5 {[%clk 0:01:31.1]} 42... Kg7 {[%clk 0:00:40.3]}
43. Re7+ {[%clk 0:01:30.6]} 43... Kg8 {[%clk 0:00:40.3]} 44. Re5 {[%clk
0:01:26.9]} 44... Kg7 {[%clk 0:00:40.5]} 45. Rd5 {[%clk 0:01:26.6]} 45... Kg8
{[%clk 0:00:39.6]} 46. Kf4 {[%clk 0:01:26.5]} 46... Kg7 {[%clk 0:00:39.5]} 47.
Kg3 {[%clk 0:01:26.2]} 47... Kg6 {[%clk 0:00:38]} 48. Kh4 {[%clk 0:01:25.7]}
48... Rc6 {[%clk 0:00:36.3]} 49. Rd8 {[%clk 0:01:25.3]} 49... Re6 {[%clk
0:00:32.3]} 50. Rg8+ {[%clk 0:01:24.5]} 50... Kf7 {[%clk 0:00:32.5]} 51. Rc8
{[%clk 0:01:23.2]} 51... Kg6 {[%clk 0:00:32.7]} 52. Rc5 {[%clk 0:01:22.2]} 52...
Ra6 {[%clk 0:00:32.3]} 53. Rb5 {[%clk 0:01:21.6]} 53... Rc6 {[%clk 0:00:31.6]}
54. Rb8 {[%clk 0:01:20.4]} 54... Rd6 {[%clk 0:00:30.6]} 55. Rg8+ {[%clk
0:01:19.6]} 55... Kf7 {[%clk 0:00:30.6]} 56. Rc8 {[%clk 0:01:18.6]} 56... Kg6
{[%clk 0:00:30.5]} 57. Rc7 {[%clk 0:01:18.2]} 57... Ra6 {[%clk 0:00:29.7]} 58.
Rd7 {[%clk 0:01:17.6]} 58... Rb6 {[%clk 0:00:29.8]} 59. Rd8 {[%clk 0:01:17.4]}
59... Ra6 {[%clk 0:00:29.8]} 60. Rg8+ {[%clk 0:01:17]} 60... Kf7 {[%clk
0:00:29.6]} 61. Rd8 {[%clk 0:01:16.2]} 61... Kg6 {[%clk 0:00:28.6]} 62. Rd5
{[%clk 0:01:15.8]} 62... Rb6 {[%clk 0:00:28.1]} 63. Rd4 {[%clk 0:01:15]} 63...
Rb1 {[%clk 0:00:27.3]} 64. Rd6+ {[%clk 0:01:14]} 64... Kg7 {[%clk 0:00:27.6]}
65. Kg3 {[%clk 0:01:13.7]} 65... Rb3+ {[%clk 0:00:26.2]} 66. Kf4 {[%clk
0:01:13.3]} 66... Rb4+ {[%clk 0:00:24.3]} 67. Kf5 {[%clk 0:01:12.9]} 67... Rb5+
{[%clk 0:00:24.6]} 68. Kf4 {[%clk 0:01:12.8]} 68... Rb4+ {[%clk 0:00:24.8]} 69.
Kg3 {[%clk 0:01:13]} 69... Rb3+ {[%clk 0:00:25]} 70. Kh4 {[%clk 0:01:13]} 70...
Rb1 {[%clk 0:00:25.1]} 71. Rd7+ {[%clk 0:01:10.3]} 71... Kg6 {[%clk 0:00:25.2]}
72. Rd6+ {[%clk 0:01:10.2]} 72... Kg7 {[%clk 0:00:25.4]} 1/2-1/2

[Event "*** Titled Tuesday Blitz"]
[Site "Chess.com"]
[Date "2020.10.20"]
[Round "4"]
[White "RobPeresian"]
[Black "Matols"]
[Result "0-1"]
[WhiteElo "2421"]
[BlackElo "2250"]
[TimeControl "180+1"]
[EndTime "10:41:52 PDT"]
[Termination "Matols won by resignation"]

1. Nf3 {[%clk 0:03:00.9]} 1... Nf6 {[%clk 0:02:57]} 2. c4 {[%clk 0:03:00.8]}
2... e6 {[%clk 0:02:54.9]} 3. Nc3 {[%clk 0:02:59.9]} 3... b6 {[%clk 0:02:52.2]}
4. g3 {[%clk 0:02:59.6]} 4... Bb7 {[%clk 0:02:49.2]} 5. Bg2 {[%clk 0:03:00.1]}
5... Bb4 {[%clk 0:02:48.9]} 6. Qc2 {[%clk 0:02:58.9]} 6... O-O {[%clk
0:02:47.3]} 7. O-O {[%clk 0:02:59.3]} 7... d5 {[%clk 0:02:45.4]} 8. cxd5 {[%clk
0:02:56.6]} 8... exd5 {[%clk 0:02:42.3]} 9. d4 {[%clk 0:02:48.1]} 9... Re8
{[%clk 0:02:40.4]} 10. Bg5 {[%clk 0:02:45.9]} 10... h6 {[%clk 0:02:35.7]} 11.
Bxf6 {[%clk 0:02:45.6]} 11... Qxf6 {[%clk 0:02:35.1]} 12. e3 {[%clk 0:02:40.4]}
12... a6 {[%clk 0:02:24]} 13. Rac1 {[%clk 0:02:36.3]} 13... Nd7 {[%clk
0:02:21.3]} 14. Rfd1 {[%clk 0:02:35.5]} 14... Rac8 {[%clk 0:02:19.2]} 15. Ne1
{[%clk 0:02:33.7]} 15... Qe6 {[%clk 0:02:11]} 16. Nd3 {[%clk 0:02:32.5]} 16...
Bd6 {[%clk 0:02:09.8]} 17. Qb3 {[%clk 0:02:28.9]} 17... Nf6 {[%clk 0:02:04.7]}
18. a4 {[%clk 0:02:17]} 18... Ne4 {[%clk 0:02:00.6]} 19. a5 {[%clk 0:02:09.6]}
19... b5 {[%clk 0:01:48.7]} 20. Nxe4 {[%clk 0:02:08.3]} 20... dxe4 {[%clk
0:01:46.9]} 21. Qxe6 {[%clk 0:02:08.7]} 21... Rxe6 {[%clk 0:01:45.5]} 22. Nc5
{[%clk 0:02:09.1]} 22... Bxc5 {[%clk 0:01:41]} 23. Rxc5 {[%clk 0:02:10]} 23...
Re7 {[%clk 0:01:35.6]} 24. b4 {[%clk 0:02:09.3]} 24... Rd8 {[%clk 0:01:29.5]}
25. Rdc1 {[%clk 0:02:09]} 25... c6 {[%clk 0:01:25.4]} 26. h4 {[%clk 0:02:04.9]}
26... Rd5 {[%clk 0:01:14.6]} 27. Kf1 {[%clk 0:02:03.8]} 27... Rxc5 {[%clk
0:01:12.9]} 28. Rxc5 {[%clk 0:02:01.4]} 28... Kf8 {[%clk 0:01:09.5]} 29. Re5
{[%clk 0:01:36.6]} 29... Rxe5 {[%clk 0:00:56.4]} 30. dxe5 {[%clk 0:01:36.7]}
30... c5 {[%clk 0:00:56.9]} 31. bxc5 {[%clk 0:01:35.4]} 31... Ke7 {[%clk
0:00:56.9]} 32. Bh3 {[%clk 0:01:33.1]} 32... Kd8 {[%clk 0:00:29.6]} 33. Ke2
{[%clk 0:01:14.3]} 33... Kc7 {[%clk 0:00:28.5]} 34. Bf5 {[%clk 0:01:11.7]} 34...
Bd5 {[%clk 0:00:26.6]} 35. Kd2 {[%clk 0:01:06.9]} 35... Kc6 {[%clk 0:00:20.9]}
36. Bc8 {[%clk 0:01:05.9]} 36... Kxc5 {[%clk 0:00:21.2]} 37. Bxa6 {[%clk
0:01:05.7]} 37... Kb4 {[%clk 0:00:21.5]} 38. g4 {[%clk 0:00:50.4]} 38... Kxa5
{[%clk 0:00:21.1]} 39. Bc8 {[%clk 0:00:49.1]} 39... Kb4 {[%clk 0:00:20.9]} 40.
g5 {[%clk 0:00:41.9]} 40... hxg5 {[%clk 0:00:20.5]} 41. hxg5 {[%clk 0:00:42]}
41... Kc5 {[%clk 0:00:20.3]} 42. Kc3 {[%clk 0:00:39.7]} 42... b4+ {[%clk
0:00:19.9]} 43. Kb2 {[%clk 0:00:40.4]} 43... g6 {[%clk 0:00:18.2]} 44. Bd7
{[%clk 0:00:39.4]} 44... Kc4 {[%clk 0:00:17.3]} 45. Bg4 {[%clk 0:00:22.2]} 45...
Kd3 {[%clk 0:00:17]} 46. Kc1 {[%clk 0:00:22.3]} 46... b3 {[%clk 0:00:12.2]} 47.
Bd1 {[%clk 0:00:17.6]} 47... Kc3 {[%clk 0:00:12]} 48. Be2 {[%clk 0:00:13.4]}
48... b2+ {[%clk 0:00:11.1]} 49. Kb1 {[%clk 0:00:13.7]} 49... Bb3 {[%clk
0:00:11.2]} 0-1